Cogmind - Beta 14 @@@ ROGUE MODE // 2024.11.22 @ 19:03:39 Player: eEnbyEm Result: Escaped! Performance ------------- Evolutions (9) 4500 Regions Visited (22) 4400 Robots Destroyed (78) 390 Value Destroyed (2049) 2049 Prototype IDs (45) 900 Alien Tech Used (2) 400 Bonus (4700) 4700 TOTAL SCORE: 17339 Bonus ------- High Alert Combat Kills 24 Follower Combat Kills 1061 Entered DSFs 500 Aligned with FarCom 300 Acquired ECA 300 Win 3000 Friendly Fire -485 Cogmind --------- Core Integrity 1555/1600 Matter 122/300 Energy 32/190 System Corruption 0% Temperature Hot (225) Movement Flying (12) Location To Epsilon Eridani Parts ------- > --- POWER (2) -------- Light Quantum Reactor > --- PROPULSION (9) --- Cooled Nuclear Pulse Thruster (fused) Cooled Nuclear Pulse Thruster Cooled Nuclear Pulse Thruster Cooled Nuclear Pulse Thruster Impulse Thruster Impulse Thruster Field Propulsion Array > --- UTILITY (12) ----- Large Storage Unit Structural Scanner Long-range Sensor Array Advanced Signal Interpreter Advanced Terrain Scanner Advanced Terrain Scan Processor Advanced Terrain Scan Processor Improved Hacking Suite Improved Hacking Suite Advanced Hacking Suite Advanced Hacking Suite > --- WEAPON (2) ------- Heavy Mace > --- INVENTORY (15) --- Light Ion Engine Improved Deuterium Engine Light Quantum Reactor Energy Well (350) Advanced Energy Well (500) Long-range Sensor Array Encrypted Comm Array Improved Heavy Armor Plating Long-range Tractor Beam Long-range Proton Cannon Enhanced Nova Cannon Improved Grenade Launcher Falx Peak State ------------ > --- POWER ------------ Light Antimatter Reactor Light Quantum Reactor > --- PROPULSION ------- Cooled Nuclear Pulse Thruster Cooled Nuclear Pulse Thruster Cooled Nuclear Pulse Thruster Cooled Nuclear Pulse Thruster Impulse Thruster Impulse Thruster Impulse Thruster Field Propulsion Array > --- UTILITY ---------- Large Storage Unit Structural Scanner Long-range Sensor Array Advanced Signal Interpreter Advanced Terrain Scanner Advanced Terrain Scan Processor Advanced Terrain Scan Processor Improved Hacking Suite Improved Hacking Suite Advanced Hacking Suite Advanced Hacking Suite > --- WEAPON ----------- Heavy Mace > --- INVENTORY -------- Light Ion Engine Improved Deuterium Engine Light Quantum Reactor Energy Well Advanced Energy Well Long-range Sensor Array Encrypted Comm Array Improved Heavy Armor Plating Long-range Tractor Beam Long-range Proton Cannon Enhanced Nova Cannon Improved Grenade Launcher Falx [Rating: 138] Favorites ----------- Power Light Ion Engine Engine Light Ion Engine Power Core Micro Fission Core Reactor Light Quantum Reactor Propulsion Light Treads Treads Light Treads Leg Carbon-fiber Leg Wheel Wheel Flight Unit Cooled Nuclear Pulse Thruster Utility High-capacity Storage Unit Device Improved Heat Sink Storage High-capacity Storage Unit Processor Advanced Signal Interpreter Hackware System Shield Protection Propulsion Shielding Weapon Heavy Assault Rifle Energy Gun Small Laser Energy Cannon Beam Cannon Ballistic Gun Heavy Assault Rifle Launcher Improved Grenade Launcher Special Weapon Field Lobotomy Kit Impact Weapon Maul Slashing Weapon Great Axe Build | -11 -10 -10 -10 -9 -8 -8 -7 -6 -6 -6 -6 -5 -5 -5 -5 -4 -4 -4 -4 -3 -2 -1 ------- Run | Yrd Mat Min Exi Min Mat Sto Fac Fac Was Fac DSF Fac Upp Upp Zhi Pro Fac Arm Lab Res Res Acc Slots Evolved 18 | . . . . . 4 . 2 2 . . . 2 . . . . 2 . . 2 2 2 Power 1 | . . . . . . . . . . . . . . . . . . . . 1 . . Propulsion 7 | . . . . . 2 . . 1 . . . 1 . . . . 1 . . 1 . 1 Utility 10 | . . . . . 2 . 2 1 . . . 1 . . . . 1 . . . 2 1 Weapon . | . . . . . . . . . . . . . . . . . . . . . . . Parts Attached 228 | 7 11 3 1 1 20 62 13 23 2 1 3 23 4 1 11 . 5 4 . 8 8 17 Power 23 | 1 5 1 . . 3 1 . 1 . . . 2 . . 5 . . . . . 1 3 Engine 15 | 1 5 1 . . 3 1 . . . . . 1 . . 1 . . . . . 1 1 Core 5 | . . . . . . . . 1 . . . 1 . . 3 . . . . . . . Reactor 3 | . . . . . . . . . . . . . . . 1 . . . . . . 2 Propulsion 44 | 2 2 . . . 5 20 . 1 . . . 8 1 . . . 1 . . 1 1 2 Treads 4 | 2 2 . . . . . . . . . . . . . . . . . . . . . Leg 20 | . . . . . 4 16 . . . . . . . . . . . . . . . . Wheel 1 | . . . . . 1 . . . . . . . . . . . . . . . . . Hover . | . . . . . . . . . . . . . . . . . . . . . . . Flight 19 | . . . . . . 4 . 1 . . . 8 1 . . . 1 . . 1 1 2 Utility 77 | 2 3 1 1 . 7 15 10 11 . . 2 6 3 . 5 . 3 2 . 2 2 2 Device 31 | 1 2 . . . 5 6 3 5 . . 1 1 2 . . . . 2 . 1 . 2 Storage 7 | 1 1 . 1 . 1 1 . . . . . 1 . . 1 . . . . . . . Processor 4 | . . . . . . . 1 1 . . . . 1 . . . . . . . 1 . Hackware 9 | . . . . . . 2 . . . . 1 3 . . . . 1 . . 1 1 . Protection 26 | . . 1 . . 1 6 6 5 . . . 1 . . 4 . 2 . . . . . Artifact . | . . . . . . . . . . . . . . . . . . . . . . . Weapon 84 | 2 1 1 . 1 5 26 3 10 2 1 1 7 . 1 1 . 1 2 . 5 4 10 Energy Gun 9 | . 1 . . . 1 7 . . . . . . . . . . . . . . . . Energy Cannon 15 | . . 1 . . . 1 . . 1 1 . 1 . . . . 1 1 . 2 2 4 Ballistic Gun 27 | 2 . . . . 4 15 1 5 . . . . . . . . . . . . . . Ballistic Cannon . | . . . . . . . . . . . . . . . . . . . . . . . Launcher 6 | . . . . . . 1 . 4 . . . . . 1 . . . . . . . . Special Weapon 1 | . . . . 1 . . . . . . . . . . . . . . . . . . Impact Weapon 12 | . . . . . . 1 . . . . 1 3 . . 1 . . 1 . 1 . 4 Slashing Weapon 14 | . . . . . . 1 2 1 1 . . 3 . . . . . . . 2 2 2 Piercing Weapon . | . . . . . . . . . . . . . . . . . . . . . . . Special Melee Weapon . | . . . . . . . . . . . . . . . . . . . . . . . Unidentified Prototypes 13 | . . . . . . 7 . . . . . 1 . . 4 . . 1 . . . . Parts Lost 26 | . 2 . . . 3 3 5 1 . . . . 3 . . . 2 1 . . 1 5 Power 2 | . . . . . . 1 . . . . . . . . . . . . . . . 1 Propulsion 7 | . . . . . 2 1 . . . . . . 1 . . . . . . . 1 2 Utility 14 | . . . . . 1 1 4 1 . . . . 2 . . . 2 1 . . . 2 Weapon 3 | . 2 . . . . . 1 . . . . . . . . . . . . . . . Highest Loss Streak 3 | . 1 . . . 2 2 2 1 . . . . 3 . . . 2 1 . . 1 3 To Critical Strikes . | . . . . . . . . . . . . . . . . . . . . . . . Average Slot Usage (%) 92 | . 98 100 100 100 96 98 75 60 70 67 71 88 93 93 88 94 86 85 84 85 83 80 Engine 8 | . 14 14 14 14 9 8 7 2 . . . 1 . . . . . . . . 2 6 Treads 9 | . 27 28 28 28 2 . . . . . . . . . . . . . . . . . Leg 12 | . . . . . 26 34 . . . . . . . . . . . . . . . . Flight 5 | . . . . . . . 7 13 13 13 13 30 35 35 35 35 31 31 31 33 30 26 Device 8 | . 14 5 . . 20 10 6 5 13 13 13 4 4 5 5 5 1 3 5 7 4 8 Storage 9 | . 13 14 14 14 9 9 7 6 6 6 6 5 5 5 5 5 5 5 5 4 4 4 Processor 2 | . . . . . . . 7 6 6 6 6 5 6 11 11 11 10 10 10 9 13 12 Hackware 5 | . . . . . . 7 10 6 6 6 6 21 20 17 17 17 16 15 15 15 18 17 Protection 8 | . . 8 14 14 6 8 11 12 6 6 6 5 5 5 4 5 9 8 5 4 4 2 Energy Gun 3 | . 4 14 14 4 . 1 5 . 6 1 4 . . . . . . . . . . . Energy Cannon 3 | . . 14 14 14 . . . . . . . . . . . . 1 . . 1 . . Ballistic Gun 8 | . 23 . . . 16 16 1 2 . . . . . . . . . . . . . . Peak Build Rating 138 | 7 8 8 14 22 34 58 68 71 79 79 83 101 96 93 96 94 109 115 106 123 130 138 Average Rating 38 | 6 7 8 9 19 29 34 66 66 76 75 80 94 94 91 90 94 105 108 106 118 124 121 On Entrance 67 | . 7 7 8 14 22 32 58 56 71 78 78 82 96 92 89 94 94 109 106 106 119 127 Naked Turns . | . . . . . . . . . . . . . . . . . . . . . . . Heaviest Build 63 | 12 47 48 48 55 63 63 48 57 54 54 55 58 37 37 37 37 49 45 44 45 50 54 Greatest Support 66 | 40 40 40 40 40 55 55 50 55 55 55 55 62 37 52 37 37 60 60 45 51 64 66 Greatest Overweight (x) 16 | 3 2 1 1 1 5 2 . 16 . . . 2 . . . . 1 . . . . . Average Overweight (x) . | . . 1 1 1 2 . . . . . . . . . . . . . . . . . Largest Inventory Capacity 20 | 8 20 20 20 20 20 20 15 15 15 15 15 15 15 15 15 15 15 15 15 15 15 15 Average Capacity 17 | 7 19 20 20 20 20 19 15 15 15 15 15 15 15 15 15 15 15 15 15 15 15 15 Most Carried 20 | 4 14 15 20 20 20 20 15 15 15 15 15 15 15 12 15 15 15 15 14 13 13 15 Average Carried 16 | 3 9 13 18 20 19 19 14 13 14 14 14 14 14 11 13 14 14 14 14 11 12 14 Final Capacity 20 | 8 20 20 20 20 20 15 15 15 15 15 15 15 15 15 15 15 15 15 15 15 15 15 Final Carried 20 | 4 14 15 20 20 20 15 15 15 15 15 15 15 12 12 15 15 14 14 14 12 13 14 Class Distribution -------------------- 51% | Mutant 32% | Scavenger-Mutant 7% | Hacker-Sprinter 6% | Hacker-Mutant Dominant Class ---------------- Mutant | -10/Materials Mutant | -10/Mines Mutant | -10/Exiles Mutant | -9/Mines Scavenger-Mutant | -8/Materials Scavenger-Mutant | -8/Storage Mutant | -7/Factory Mutant | -6/Factory Mutant | -6/Waste Mutant | -6/Factory Mutant | -6/DSF Hacker-Sprinter | -5/Factory Hacker-Sprinter | -5/Upper Caves Hacker-Sprinter | -5/Upper Caves Hacker-Mutant | -5/Zhirov Hacker-Sprinter | -4/Proximity Caves Hacker-Sprinter | -4/Factory Hacker-Mutant | -4/Armory Hacker-Mutant | -4/Lab Hacker-Sprinter | -3/Research Hacker-Sprinter | -2/Research Wizard-Scout | -1/Access Resources | -11 -10 -10 -10 -9 -8 -8 -7 -6 -6 -6 -6 -5 -5 -5 -5 -4 -4 -4 -4 -3 -2 -1 ----------- Run | Yrd Mat Min Exi Min Mat Sto Fac Fac Was Fac DSF Fac Upp Upp Zhi Pro Fac Arm Lab Res Res Acc Matter Collected 3444 | 290 223 278 . 20 439 932 205 58 314 . . 220 60 8 . 69 . 104 . . 112 112 Remotely . | . . . . . . . . . . . . . . . . . . . . . . . Salvage Created 3017 | 132 306 84 . 25 826 1082 76 63 131 . . 236 . . . . . 7 . 39 . 10 Parts 173 | 7 21 2 . . 47 60 4 8 5 . . 12 . . . . . 1 . 2 . 4 Haulers Intercepted 6 | . 1 . . . . 4 . . . . . 1 . . . . . . . . . . Recyclers Shooed 6 | . . . . . . 6 . . . . . . . . . . . . . . . . Parts Field Recycled . | . . . . . . . . . . . . . . . . . . . . . . . Retrieved Matter . | . . . . . . . . . . . . . . . . . . . . . . . Parts Self-Destructed 5 | . . . . . . . . . . . . . . 5 . . . . . . . . Prevented . | . . . . . . . . . . . . . . . . . . . . . . . Kills | -11 -10 -10 -10 -9 -8 -8 -7 -6 -6 -6 -6 -5 -5 -5 -5 -4 -4 -4 -4 -3 -2 -1 ------- Run | Yrd Mat Min Exi Min Mat Sto Fac Fac Was Fac DSF Fac Upp Upp Zhi Pro Fac Arm Lab Res Res Acc Combat Hostiles Destroyed 47 | . 10 2 . 1 7 13 2 7 . . . 4 . . . . . . . 1 . . Melee 8 | . . . . . . . 2 1 . . . 4 . . . . . . . 1 . . Guns 31 | . 10 . . . 7 13 . 1 . . . . . . . . . . . . . . Cannons 3 | . . 2 . 1 . . . . . . . . . . . . . . . . . . AOE 5 | . . . . . . . . 5 . . . . . . . . . . . . . . Classes Destroyed 15 | 2 5 . . . 4 1 1 1 1 . . . . . . . . . . . . . Worker 5 | . 1 . . . 3 1 . . . . . . . . . . . . . . . . Builder 3 | . . . . . 2 . . . . . . . . . . . . . . . . 1 Tunneler 2 | 2 . . . . . . . . . . . . . . . . . . . . . . Hauler 6 | . 1 . . . . 4 . . . . . 1 . . . . . . . . . . Recycler 8 | 1 . . . . 4 3 . . . . . . . . . . . . . . . . Operator 2 | . 1 . . . . . . . . . . . . . . . . 1 . . . . Watcher 3 | . . . . . 2 . . . . . . 1 . . . . . . . . . . Swarmer 17 | . 7 . . . . . 1 4 . . . 4 . . . . . . . 1 . . Cutter 3 | . . . . . . . . 3 . . . . . . . . . . . . . . Grunt 19 | . 3 2 . 1 4 9 . . . . . . . . . . . . . . . . Duelist 1 | . . . . . . 1 . . . . . . . . . . . . . . . . Sentry 5 | . . . . . 2 3 . . . . . . . . . . . . . . . . Hunter 1 | . . . . . 1 . . . . . . . . . . . . . . . . . Programmer 1 | . . . . . . . 1 . . . . . . . . . . . . . . . Martyr 2 | . . . . . . . . . 2 . . . . . . . . . . . . . Best Kill Streak 5 | 3 2 2 . 1 5 5 1 4 . . . 4 . . . . . 1 . 1 . 1 Combat Bots Only 4 | . 2 2 . 1 3 4 1 4 . . . 4 . . . . . . . 1 . . Max Kills in Single Turn 3 | 1 2 1 . 1 2 2 1 3 1 . . 1 . . . . . 1 . 1 . 1 Gunslinging . | . . . . . . . . . . . . . . . . . . . . . . . Exploded 3 | . . . . . . . . 3 . . . . . . . . . . . . . . Melee 1 | . . . . . . . 1 1 . . . 1 . . . . . . . 1 . . Uniques/NPCs Destroyed . | . . . . . . . . . . . . . . . . . . . . . . . Combat | -11 -10 -10 -10 -9 -8 -8 -7 -6 -6 -6 -6 -5 -5 -5 -5 -4 -4 -4 -4 -3 -2 -1 -------- Run | Yrd Mat Min Exi Min Mat Sto Fac Fac Was Fac DSF Fac Upp Upp Zhi Pro Fac Arm Lab Res Res Acc Hostile Shots Fired 671 | 2 96 13 . 19 48 105 112 83 . . 14 16 9 4 . . 24 39 . 11 36 40 Missed 256 | . 29 3 . 5 8 38 52 28 . . 5 6 4 3 . . 15 13 . 6 21 20 Damage Taken 7881 | 78 595 150 . 152 582 1214 1062 1246 . . 92 597 323 52 . . 195 681 . 131 263 468 Core 977 | 26 123 59 . 33 93 173 151 55 . . . 20 21 . . . 24 74 . 25 55 45 Absorbed by Shields 68 | . . . . . . . . . . . 19 . . . . . . 49 . . . . Redirected to Shielding 422 | . . . . 21 31 . 210 . . . . . . . . . 64 96 . . . . Regen/Repaired (Parts) 664 | . 157 . . . . 258 . 14 97 . 18 120 . . . . . . . . . . Core Remaining (%) 78 | 89 . . . 3 . 51 78 . . . 93 . . . . 95 . . 83 98 96 97 Volleys Fired 233 | 5 47 8 . 10 43 77 5 16 . 1 1 . . 3 . . 2 4 . 6 1 4 Largest 2 | 2 2 2 . 1 2 2 1 2 . 1 1 . . 1 . . 1 1 . 1 1 1 Hottest 120 | 40 60 100 . 60 46 90 65 50 . 85 40 . . 36 . . 85 120 . 120 120 120 Shots Fired 414 | 10 94 16 . 10 86 148 7 21 . 1 1 . . 3 . . 2 4 . 6 1 4 Gun 371 | 10 94 8 . . 86 148 7 17 . . 1 . . . . . . . . . . . Cannon 33 | . . 8 . 7 . . . . . 1 . . . . . . 2 4 . 6 1 4 Launcher 7 | . . . . . . . . 4 . . . . . 3 . . . . . . . . Special 3 | . . . . 3 . . . . . . . . . . . . . . . . . . Kinetic 327 | 10 86 . . . 86 127 1 17 . . . . . . . . . . . . . . Thermal 75 | . 8 16 . 7 . 21 6 . . 1 1 . . . . . 2 4 . 6 1 2 Explosive 7 | . . . . . . . . 4 . . . . . 3 . . . . . . . . Electromagnetic 2 | . . . . . . . . . . . . . . . . . . . . . . 2 Robot Hit Streak 16 | 8 8 4 . 5 12 16 6 14 . . . . . 2 . . . 4 . . . . Robot Miss Streak 4 | 1 4 2 . 1 4 4 . 3 . . 1 . . . . . . . . . . . Penetration Max . | . . . . . . . . . . . . . . . . . . . . . . . Secondary Targets 5 | . 1 . . . . 4 . . . . . . . . . . . . . . . . Max Gunslinging Chain 1 | . 1 . . . . 1 . . . . . . . . . . . . . . . . Shots Hit Robots 262 | 8 49 10 . 6 56 83 11 14 8 . 2 6 . 2 . . . 2 . 1 2 2 Core Hits 130 | 5 22 4 . . 29 39 2 16 4 . . 4 . 2 . . . 1 . 1 . 1 Critical Kills 1 | 1 . . . . . . . . . . . . . . . . . . . . . . Critical Parts Destroyed 1 | . . . . . . . . . . . . 1 . . . . . . . . . . Critical Strikes 9 | 1 . . . . . . 2 . 3 . . 1 . . . . . . . . 1 1 Destroy 1 | 1 . . . . . . . . . . . . . . . . . . . . . . Smash 1 | . . . . . . . . . . . . 1 . . . . . . . . . . Sever 7 | . . . . . . . 2 . 3 . . . . . . . . . . . 1 1 Melee Attacks 114 | . . . . . . 1 47 1 8 . 2 10 4 2 . . 3 9 3 9 9 6 Impact 39 | . . . . . . 1 . . . . 2 5 4 2 . . 3 9 3 6 . 4 Slashing 75 | . . . . . . . 47 1 8 . . 5 . . . . . . . 3 9 2 Piercing . | . . . . . . . . . . . . . . . . . . . . . . . Sneak Attacks 11 | . . . . . . . . . 8 . 1 1 . . . . . . . . . 1 Combat Hostiles . | . . . . . . . . . . . . . . . . . . . . . . . Follow-up Attacks . | . . . . . . . . . . . . . . . . . . . . . . . Damage Inflicted 5814 | 83 555 144 . 51 870 1396 375 889 285 . 101 316 . 232 . . . 254 . 40 87 136 Guns 3173 | 83 555 55 . . 859 1347 82 192 . . . . . . . . . . . . . . Cannons 201 | . . 89 . 51 . . . . . . . . . . . . . 61 . . . . Explosions 1104 | . . . . . . . . 679 . . . . . 232 . . . 193 . . . . Melee 1273 | . . . . . . . 293 15 285 . 101 316 . . . . . . . 40 87 136 Ramming 63 | . . . . . 11 49 . 3 . . . . . . . . . . . . . . Kinetic 2904 | 83 508 . . . 859 1242 20 192 . . . . . . . . . . . . . . Thermal 663 | . 47 144 . 51 . 105 62 . . . . . . . . . . 254 . . . . Explosive 911 | . . . . . . . . 679 . . . . . 232 . . . . . . . . Electromagnetic . | . . . . . . . . . . . . . . . . . . . . . . . Impact 252 | . . . . . . . . . . . 101 151 . . . . . . . . . . Slashing 1021 | . . . . . . . 293 15 285 . . 165 . . . . . . . 40 87 136 Piercing . | . . . . . . . . . . . . . . . . . . . . . . . Highest Corruption 16 | . . . . . . . 16 . . . . 2 8 8 8 8 . 1 1 . 1 . Average Corruption 9 | . . . . . . . 12 . . . . 1 4 8 8 8 . 1 1 . 1 . Corruption Purged . | . . . . . . . . . . . . . . . . . . . . . . . Corruption Blocked . | . . . . . . . . . . . . . . . . . . . . . . . Effects 47 | . . . . . . . 31 . . . . . 3 8 3 1 . 1 . . . . Message Errors 17 | . . . . . . . 10 . . . . . 2 3 . 1 . 1 . . . . Matter Fused 5 | . . . . . . . 4 . . . . . . . 1 . . . . . . . Heat Flow Errors 4 | . . . . . . . 2 . . . . . . 1 1 . . . . . . . Energy Discharges 7 | . . . . . . . 5 . . . . . . 2 . . . . . . . . Parts Fused 2 | . . . . . . . . . . . . . . 1 1 . . . . . . . Data Loss (minor) 4 | . . . . . . . 3 . . . . . 1 . . . . . . . . . Data Loss (major) 2 | . . . . . . . 1 . . . . . . 1 . . . . . . . . Misfires 2 | . . . . . . . 2 . . . . . . . . . . . . . . . Alerts 1 | . . . . . . . 1 . . . . . . . . . . . . . . . Misdirections 3 | . . . . . . . 3 . . . . . . . . . . . . . . . Overload Shots . | . . . . . . . . . . . . . . . . . . . . . . . Overflow Damage 313 | . . . . 4 . . 28 32 6 . . 129 . 31 . . . . . . 26 57 Projectiles 4 | . . . . 4 . . . . . . . . . . . . . . . . . . Explosions 63 | . . . . . . . . 32 . . . . . 31 . . . . . . . . Melee 246 | . . . . . . . 28 . 6 . . 129 . . . . . . . . 26 57 Knockbacks . | . . . . . . . . . . . . . . . . . . . . . . . Impact . | . . . . . . . . . . . . . . . . . . . . . . . Kinetic . | . . . . . . . . . . . . . . . . . . . . . . . Secondary . | . . . . . . . . . . . . . . . . . . . . . . . Self-Inflicted Damage 207 | . . . . . . . . 154 . . . . . 53 . . . . . . . . Shots 4 | . . . . . . . . 3 . . . . . 1 . . . . . . . . Rammed 1 | . . . . . . . . 1 . . . . . . . . . . . . . . Targets Rammed 9 | . . . . . 2 6 . 1 . . . . . . . . . . . . . . Kicked 8 | . . . . . 2 6 . . . . . . . . . . . . . . . . Crushed . | . . . . . . . . . . . . . . . . . . . . . . . Highest Temperature 399 | . 6 399 . 78 . 144 172 269 . 60 86 60 60 263 62 . 61 163 . 36 4 137 Average Temperature 54 | . 6 198 . 33 . 36 52 99 . 31 27 21 20 40 29 . 61 56 . 17 3 48 Received Heat Transfer 1764 | . 90 87 . 84 225 666 93 363 . . 9 . . . . . 21 117 . 9 . . Effects 4 | . . 3 . . . . . 1 . . . . . . . . . . . . . . Shutdowns 1 | . . 1 . . . . . . . . . . . . . . . . . . . . Energy Bleed 1 | . . . . . . . . 1 . . . . . . . . . . . . . . Matter Decay 1 | . . 1 . . . . . . . . . . . . . . . . . . . . Damage (minor) 1 | . . 1 . . . . . . . . . . . . . . . . . . . . Siege Activations . | . . . . . . . . . . . . . . . . . . . . . . . Robots Corrupted 1 | . . . . . . . . . . . . 1 . . . . . . . . . . Combat Hostiles . | . . . . . . . . . . . . . . . . . . . . . . . Parts Fried 2 | . . . . . . . . . . . . 2 . . . . . . . . . . Impact Corruptions 3 | . . . . . . . . . . . . 3 . . . . . . . . . . Robots Melted . | . . . . . . . . . . . . . . . . . . . . . . . Combat Hostiles . | . . . . . . . . . . . . . . . . . . . . . . . Parts Melted 2 | . . . . . . . 2 . . . . . . . . . . . . . . . Heat Transferred 867 | . 100 310 . 111 . 148 74 . . . . . . . . . . 124 . . . . Parts Sabotaged . | . . . . . . . . . . . . . . . . . . . . . . . Parts Stolen 1 | . . . . . . . . . . . . . . 1 . . . . . . . . Parts Stripped . | . . . . . . . . . . . . . . . . . . . . . . . Power Chain Reactions . | . . . . . . . . . . . . . . . . . . . . . . . Alert | -11 -10 -10 -10 -9 -8 -8 -7 -6 -6 -6 -6 -5 -5 -5 -5 -4 -4 -4 -4 -3 -2 -1 ------- Run | Yrd Mat Min Exi Min Mat Sto Fac Fac Was Fac DSF Fac Upp Upp Zhi Pro Fac Arm Lab Res Res Acc Peak Influence 672 | 15 195 50 . 42 102 432 177 374 187 345 651 672 . . . . 210 284 . 102 296 258 Initial 341 | . . . . . 8 18 63 29 113 130 241 341 . . . . . 102 . . 57 177 Average 97 | 4 80 34 . 11 33 157 53 123 173 287 494 530 . . . . 54 131 . 36 150 220 Maximum Alert Level 2 | . . . . . . 2 . 1 . 1 2 2 . . . . 1 1 . . 1 1 Low Security (%) 85 | 100 100 100 . 100 100 67 100 74 100 28 . . . . . . 95 85 . 100 82 7 Level 1 7 | . . . . . . 19 . 25 . 71 20 8 . . . . 4 14 . . 17 92 Level 2 6 | . . . . . . 13 . . . . 79 91 . . . . . . . . . . Level 3 . | . . . . . . . . . . . . . . . . . . . . . . . Level 4 . | . . . . . . . . . . . . . . . . . . . . . . . Level 5 . | . . . . . . . . . . . . . . . . . . . . . . . High Security . | . . . . . . . . . . . . . . . . . . . . . . . Max Security . | . . . . . . . . . . . . . . . . . . . . . . . Sterilizations 1 | . . . . . . . . . . . 1 . . . . . . . . . . . Squads Dispatched 31 | . 4 . . . 2 4 6 4 . 1 2 2 . . . . 2 3 . . . 1 Investigation 8 | . . . . . . 1 2 1 . 1 . . . . . . 2 . . . . 1 Extermination 3 | . . . . . . . 2 . . . . 1 . . . . . . . . . . Reinforcement 15 | . 4 . . . 2 1 2 3 . . 2 . . . . . . 1 . . . . Assault 4 | . . . . . . 1 . . . . . 1 . . . . . 2 . . . . Garrison 1 | . . . . . . 1 . . . . . . . . . . . . . . . . Intercept . | . . . . . . . . . . . . . . . . . . . . . . . Searches Triggered . | . . . . . . . . . . . . . . . . . . . . . . . Construction Impeded 1 | . . . . . . . 1 . . . . . . . . . . . . . . . Haulers Reinforced . | . . . . . . . . . . . . . . . . . . . . . . . Active Scanning Responses . | . . . . . . . . . . . . . . . . . . . . . . . Cargo Convoy Interrupts 1 | . . . . . . . 1 . . . . . . . . . . . . . . . Stealth | -11 -10 -10 -10 -9 -8 -8 -7 -6 -6 -6 -6 -5 -5 -5 -5 -4 -4 -4 -4 -3 -2 -1 --------- Run | Yrd Mat Min Exi Min Mat Sto Fac Fac Was Fac DSF Fac Upp Upp Zhi Pro Fac Arm Lab Res Res Acc Distress Signals 19 | . 3 . . . 2 5 1 4 . . . . . . . . . 1 . . 2 1 Communications Jammed . | . . . . . . . . . . . . . . . . . . . . . . . Distress Signals . | . . . . . . . . . . . . . . . . . . . . . . . Times Spotted 248 | 2 30 2 . 7 16 26 21 31 4 . 5 13 5 5 . . 18 25 . 5 17 16 Peak Tracking Total 14 | 2 6 2 . 2 4 4 8 14 3 . 3 5 5 5 . . 13 13 . 3 10 12 Tactical Retreats 31 | . 3 . . . . . 7 5 . . 2 2 . 2 . . 1 4 . 1 2 2 Traps | -11 -10 -10 -10 -9 -8 -8 -7 -6 -6 -6 -6 -5 -5 -5 -5 -4 -4 -4 -4 -3 -2 -1 ------- Run | Yrd Mat Min Exi Min Mat Sto Fac Fac Was Fac DSF Fac Upp Upp Zhi Pro Fac Arm Lab Res Res Acc Traps Triggered 8 | . . . . . . 2 1 1 . . 1 . . . . . . 3 . . . . Indirectly . | . . . . . . . . . . . . . . . . . . . . . . . Trap Hack Attempts . | . . . . . . . . . . . . . . . . . . . . . . . Triggered . | . . . . . . . . . . . . . . . . . . . . . . . Disarmed . | . . . . . . . . . . . . . . . . . . . . . . . Reprogrammed 2 | . . . . . . . . . . . . . . . . . . 2 . . . . Reused . | . . . . . . . . . . . . . . . . . . . . . . . Traps Extracted . | . . . . . . . . . . . . . . . . . . . . . . . Installed . | . . . . . . . . . . . . . . . . . . . . . . . Triggered 1 | . . . . . . . 1 . . . . . . . . . . . . . . . Machines | -11 -10 -10 -10 -9 -8 -8 -7 -6 -6 -6 -6 -5 -5 -5 -5 -4 -4 -4 -4 -3 -2 -1 ---------- Run | Yrd Mat Min Exi Min Mat Sto Fac Fac Was Fac DSF Fac Upp Upp Zhi Pro Fac Arm Lab Res Res Acc Machines Disabled 12 | . . . . . 1 4 . . . . . 1 . . . . . 5 . . . 1 Max in Single Turn 1 | . . . . . 1 1 . . . . . 1 . . . . . 1 . . . 1 Garrison Access 4 | . . . . . . 1 2 . . 1 . . . . . . . . . . . . Energy Cycler 2 | . . . . . . . . . . . . . . . . . . 1 . . . 1 Machines Repaired . | . . . . . . . . . . . . . . . . . . . . . . . Machines Dismantled . | . . . . . . . . . . . . . . . . . . . . . . . Machines Sabotaged . | . . . . . . . . . . . . . . . . . . . . . . . Overloaded Fab Kills . | . . . . . . . . . . . . . . . . . . . . . . . Hacking | -11 -10 -10 -10 -9 -8 -8 -7 -6 -6 -6 -6 -5 -5 -5 -5 -4 -4 -4 -4 -3 -2 -1 --------- Run | Yrd Mat Min Exi Min Mat Sto Fac Fac Was Fac DSF Fac Upp Upp Zhi Pro Fac Arm Lab Res Res Acc Machines Accessed 66 | . 3 . 2 . 3 8 12 7 . 3 . 4 . 2 8 . 1 6 . 1 3 3 Terminals 42 | . 2 . . . 3 5 10 5 . 2 . 2 . . . . 1 5 . 1 3 3 Fabricators 3 | . . . . . . . . 1 . . . 1 . . . . . 1 . . . . Repair Stations 5 | . 1 . . . . 2 . 1 . . . 1 . . . . . . . . . . Recycling Units 1 | . . . . . . 1 . . . . . . . . . . . . . . . . Scanalyzers . | . . . . . . . . . . . . . . . . . . . . . . . Garrison Access 3 | . . . . . . . 2 . . 1 . . . . . . . . . . . . Total Hacks 220 | . 8 . 5 . 10 31 27 25 . 7 . 9 . 6 44 . 4 24 . 2 11 7 Successful 143 | . 6 . 5 . 7 22 3 14 . 3 . 5 . 6 44 . 4 18 . . 5 1 Failed 76 | . 2 . . . 3 9 24 10 . 4 . 4 . . . . . 6 . 2 6 6 Catastrophic 19 | . . . . . . 4 8 1 . 2 . 2 . . . . . 1 . 1 . . Database Lockouts 1 | . . . . . . . . 1 . . . . . . . . . . . . . . Manual 66 | . 4 . 1 . 4 12 15 5 . 1 . 6 . . . . 2 10 . 2 4 . Terminals 129 | . 3 . . . 10 12 25 21 . 5 . 6 . . . . 4 23 . 2 11 7 Fabricators 4 | . . . . . . . . 2 . . . 1 . . . . . 1 . . . . Repair Stations 24 | . 5 . . . . 15 . 2 . . . 2 . . . . . . . . . . Recycling Units 4 | . . . . . . 4 . . . . . . . . . . . . . . . . Scanalyzers . | . . . . . . . . . . . . . . . . . . . . . . . Garrison Access 4 | . . . . . . . 2 . . 2 . . . . . . . . . . . . Terminal Hacks 107 | . . . 5 . 6 7 . 9 . 2 . 2 . 6 44 . 3 17 . . 5 1 Record 52 | . . . 4 . 2 . . 5 . . . . . 5 32 . 2 2 . . . . Part Schematic 5 | . . . . . . . . . . . . . . . 4 . . 1 . . . . Robot Analysis 4 | . . . . . . . . . . . . . . . 4 . . . . . . . Prototype ID Bank 5 | . . . . . . . . . . . . . . . 4 . . 1 . . . . Open Door 2 | . . . . . . . . . . . . . . 1 . . . . . . . 1 Open DSF 1 | . . . . . . . . . . 1 . . . . . . . . . . . . Level Access Points 1 | . . . . . . . . . . . . . . . . . . . . . 1 . Branch Access Points 4 | . . . . . . . . 1 . . . 1 . . . . 1 . . . 1 . Emergency Access Points 1 | . . . . . . . . . . . . . . . . . . 1 . . . . Machine Index 1 | . . . . . . . . . . . . . . . . . . . . . 1 . Terminal Index 1 | . . . . . . . . 1 . . . . . . . . . . . . . . Alert Level 4 | . . . . . . 2 . . . . . . . . . . . 2 . . . . Unreport Threat 7 | . . . . . 1 2 . 1 . . . . . . . . . 3 . . . . Locate Traps 3 | . . . . . . 1 . . . . . . . . . . . 1 . . 1 . Reprogram Traps 1 | . . . . . . . . . . . . . . . . . . 1 . . . . Maintenance Status 1 | . . . . . . . . . . . . . . . . . . 1 . . . . Patrol Status 1 | . . . . . 1 . . . . . . . . . . . . . . . . . Hauler Manifests 1 | . . . . . . 1 . . . . . . . . . . . . . . . . Zone Layout 11 | . . . . . 2 1 . 1 . 1 . 1 . . . . . 4 . . 1 . Derelict Proto ID Bank 1 | . . . 1 . . . . . . . . . . . . . . . . . . . Fabricator Hacks 4 | . . . . . . . . 2 . . . 1 . . . . . 1 . . . . Network Status 3 | . . . . . . . . 1 . . . 1 . . . . . 1 . . . . Build 1 | . . . . . . . . 1 . . . . . . . . . . . . . . Repair Station Hacks 20 | . 4 . . . . 12 . 2 . . . 2 . . . . . . . . . . Scan Component 10 | . 2 . . . . 6 . 1 . . . 1 . . . . . . . . . . Repair 10 | . 2 . . . . 6 . 1 . . . 1 . . . . . . . . . . Recycling Unit Hacks 1 | . . . . . . 1 . . . . . . . . . . . . . . . . Report Inventory 1 | . . . . . . 1 . . . . . . . . . . . . . . . . Scanalyzer . | . . . . . . . . . . . . . . . . . . . . . . . Garrison Access Hacks 2 | . . . . . . . 2 . . . . . . . . . . . . . . . Seal Access 2 | . . . . . . . 2 . . . . . . . . . . . . . . . Unauthorized Hacks 9 | . 2 . . . 1 2 1 1 . 1 . . . . . . 1 . . . . . Terminals 6 | . 2 . . . 1 . 1 1 . . . . . . . . 1 . . . . . Assimilate 2 | . . . . . . . 1 . . . . . . . . . 1 . . . . . Operators 2 | . . . . . 1 . . 1 . . . . . . . . . . . . . . Skim 2 | . 2 . . . . . . . . . . . . . . . . . . . . . Fabricators . | . . . . . . . . . . . . . . . . . . . . . . . Repair Stations . | . . . . . . . . . . . . . . . . . . . . . . . Recycling Units 2 | . . . . . . 2 . . . . . . . . . . . . . . . . Reject 1 | . . . . . . 1 . . . . . . . . . . . . . . . . Recyclers 1 | . . . . . . 1 . . . . . . . . . . . . . . . . Scanalyzers . | . . . . . . . . . . . . . . . . . . . . . . . Garrison Access 1 | . . . . . . . . . . 1 . . . . . . . . . . . . Jam 1 | . . . . . . . . . . 1 . . . . . . . . . . . . Data Cores Recovered . | . . . . . . . . . . . . . . . . . . . . . . . Used . | . . . . . . . . . . . . . . . . . . . . . . . Hacking Detections 43 | . 3 . . . 3 5 10 6 . 2 . 2 . . . . 1 4 . 1 3 3 Full Trace Events 6 | . . . . . . 1 2 1 . . . . . . . . 1 . . . . 1 Feedback Events 1 | . . . . . . . . . . . . . . . . . . . . . . 1 Hackware Fried 1 | . . . . . . . . . . . . . . . . . . . . . . 1 Feedback Blocked . | . . . . . . . . . . . . . . . . . . . . . . . Robot Schematics Acquired . | . . . . . . . . . . . . . . . . . . . . . . . Robots Built . | . . . . . . . . . . . . . . . . . . . . . . . Authchips . | . . . . . . . . . . . . . . . . . . . . . . . Time . | . . . . . . . . . . . . . . . . . . . . . . . Total Robot Build Rating . | . . . . . . . . . . . . . . . . . . . . . . . Part Schematics Acquired 5 | . . . . . . . . . . . . . . . 4 . . 1 . . . . Parts Built 2 | . . . . . . . . 2 . . . . . . . . . . . . . . Authchips . | . . . . . . . . . . . . . . . . . . . . . . . Time 58 | . . . . . . . . 58 . . . . . . . . . . . . . . Total Part Build Rating 14 | . . . . . . . . 14 . . . . . . . . . . . . . . Parts Repaired 10 | . 2 . . . . 6 . 1 . . . 1 . . . . . . . . . . Time 344 | . 52 . . . . 186 . 38 . . . 68 . . . . . . . . . . Parts Recycled . | . . . . . . . . . . . . . . . . . . . . . . . Recycled Matter . | . . . . . . . . . . . . . . . . . . . . . . . Retrieved Matter . | . . . . . . . . . . . . . . . . . . . . . . . Retrieved Components . | . . . . . . . . . . . . . . . . . . . . . . . Parts Scanalyzed . | . . . . . . . . . . . . . . . . . . . . . . . Part Schematics Acquired . | . . . . . . . . . . . . . . . . . . . . . . . Parts Damaged . | . . . . . . . . . . . . . . . . . . . . . . . Bothacking | -11 -10 -10 -10 -9 -8 -8 -7 -6 -6 -6 -6 -5 -5 -5 -5 -4 -4 -4 -4 -3 -2 -1 ------------ Run | Yrd Mat Min Exi Min Mat Sto Fac Fac Was Fac DSF Fac Upp Upp Zhi Pro Fac Arm Lab Res Res Acc Used RIF Installer . | . . . . . . . . . . . . . . . . . . . . . . . Robots Hacked . | . . . . . . . . . . . . . . . . . . . . . . . Non-combat . | . . . . . . . . . . . . . . . . . . . . . . . Combat . | . . . . . . . . . . . . . . . . . . . . . . . Robot Hacks Applied . | . . . . . . . . . . . . . . . . . . . . . . . Relay Couplers Released . | . . . . . . . . . . . . . . . . . . . . . . . Fabnet Peak Effective % . | . . . . . . . . . . . . . . . . . . . . . . . Robots Rewired . | . . . . . . . . . . . . . . . . . . . . . . . Allies Hacked . | . . . . . . . . . . . . . . . . . . . . . . . Hacks Repelled . | . . . . . . . . . . . . . . . . . . . . . . . Allies | -11 -10 -10 -10 -9 -8 -8 -7 -6 -6 -6 -6 -5 -5 -5 -5 -4 -4 -4 -4 -3 -2 -1 -------- Run | Yrd Mat Min Exi Min Mat Sto Fac Fac Was Fac DSF Fac Upp Upp Zhi Pro Fac Arm Lab Res Res Acc Total Allies 36 | . . . . 5 . 10 1 . 19 . . . . . . . 1 . . . . . Largest Group 19 | . . . . 3 3 10 1 . 19 15 14 10 . . . . 1 . . . . . Highest-Rated Group 702 | . . . . 57 57 173 26 . 702 552 505 400 . . . . 26 . . . . . Highest-Rated Ally 50 | . . . . 31 31 29 26 . 50 46 46 46 . . . . 26 . . . . . Total Orders 1 | . . . . . . 1 . . . . . . . . . . . . . . . . FOLLOW 1 | . . . . . . 1 . . . . . . . . . . . . . . . . Ally Attacks 315 | . . . . 30 14 90 . . 96 . 56 29 . . . . . . . . . . Total Damage 8070 | . . . . 239 97 1096 . . 4276 . 1540 822 . . . . . . . . . . Kills 43 | . . . . 5 . 15 . . 8 . 11 4 . . . . . . . . . . Allies Corrupted 2 | . . . . . . 1 . . . 1 . . . . . . . . . . . . Allies Melted . | . . . . . . . . . . . . . . . . . . . . . . . Field Lobotomies 3 | . . . . 3 . . . . . . . . . . . . . . . . . . Intel | -11 -10 -10 -10 -9 -8 -8 -7 -6 -6 -6 -6 -5 -5 -5 -5 -4 -4 -4 -4 -3 -2 -1 ------- Run | Yrd Mat Min Exi Min Mat Sto Fac Fac Was Fac DSF Fac Upp Upp Zhi Pro Fac Arm Lab Res Res Acc Robot Analysis Total 4 | . . . . . . . . . . . . . . . 4 . . . . . . . Derelict Logs Recovered 3 | . . . . 1 . . . . . . . . . . . 2 . . . . . . Drone Launches . | . . . . . . . . . . . . . . . . . . . . . . . Drone Recoveries . | . . . . . . . . . . . . . . . . . . . . . . . Exploration | -11 -10 -10 -10 -9 -8 -8 -7 -6 -6 -6 -6 -5 -5 -5 -5 -4 -4 -4 -4 -3 -2 -1 ------------- Run | Yrd Mat Min Exi Min Mat Sto Fac Fac Was Fac DSF Fac Upp Upp Zhi Pro Fac Arm Lab Res Res Acc Turns Passed 13457 | 946 978 301 1456 1305 1998 2776 1269 459 313 64 139 306 172 237 103 43 65 188 13 99 112 115 Spaces Moved 9275 | 91 313 113 602 376 652 996 1675 909 523 86 177 608 228 380 153 190 180 312 21 131 293 266 Core 15 | 14 . . . . . . . 1 . . . . . . . . . . . . . . Treads 1559 | 77 313 113 602 376 78 . . . . . . . . . . . . . . . . . Legs 1391 | . . . . . 405 986 . . . . . . . . . . . . . . . . Wheels 169 | . . . . . 169 . . . . . . . . . . . . . . . . . Hover . | . . . . . . . . . . . . . . . . . . . . . . . Flight 6141 | . . . . . . 10 1675 908 523 86 177 608 228 380 153 190 180 312 21 131 293 266 Fastest Speed 5 | 50 160 240 240 240 120 50 50 39 39 39 39 20 20 5 20 20 5 5 20 17 6 8 Average Speed 93 | 161 238 240 240 240 187 189 50 40 39 39 39 24 20 19 20 20 19 18 20 19 16 17 Slowest Speed 850 | 200 320 240 240 240 330 260 50 850 39 39 39 176 20 20 20 20 91 20 20 20 18 21 Overloaded Moves 134 | . . . . . . . . . . . . . . 4 . . 11 37 . . 17 65 Propulsion Burnouts . | . . . . . . . . . . . . . . . . . . . . . . . Robots Hopped 34 | . . . . . . . 9 13 . . . . . 2 . . 2 . . . 6 2 Cave-ins Triggered 2 | . . . . . . . 1 . . . . . 1 . . . . . . . . . Teleports 1 | . . . . . . . . . . . . . . . . . . 1 . . . . Exploration Rate (%) 38 | 6 49 19 89 65 39 71 50 29 96 4 75 13 48 51 62 35 8 32 6 4 13 11 Regions Visited 22 Branch Regions 10 Pre-discovered Areas 2 | . . . 1 . . . . . . . . . 1 . . . . . . . . . Known Exits Taken 12 | . . . . . . . 1 . . 1 . 1 1 1 1 1 1 1 1 1 1 . Unknown Exits Taken 7 | 1 1 1 1 1 1 1 . . . . . . . . . . . . . . . . Scrap Searched 3 | . . . . . . . . . . . . . 1 . . 2 . . . . . . Spaces Dug 90 | . . . . . . 4 34 . . 1 . 2 4 12 . . 4 4 2 12 6 5 Terrain Destroyed 172 | . . . . . . 8 34 27 . 1 . 2 4 31 . . 4 28 2 12 6 13 Melee 63 | . . . . . . . 34 . . . . 2 4 1 . . 2 4 2 6 5 3 Projectile 20 | . . . . . . 8 . . . 1 . . . . . . 2 . . 6 1 2 AOE 89 | . . . . . . . . 27 . . . . . 30 . . . 24 . . . 8 Terrain Rammed . | . . . . . . . . . . . . . . . . . . . . . . . Walls Destroyed . | . . . . . . . . . . . . . . . . . . . . . . . Machines Disabled . | . . . . . . . . . . . . . . . . . . . . . . . Actions | -11 -10 -10 -10 -9 -8 -8 -7 -6 -6 -6 -6 -5 -5 -5 -5 -4 -4 -4 -4 -3 -2 -1 --------- Run | Yrd Mat Min Exi Min Mat Sto Fac Fac Was Fac DSF Fac Upp Upp Zhi Pro Fac Arm Lab Res Res Acc Total 13401 | 878 457 127 617 766 1348 1744 2016 970 618 116 244 741 345 532 220 195 199 424 23 178 329 314 Wait 3259 | 772 67 3 1 380 579 540 263 3 74 25 32 90 108 148 49 2 6 69 . 19 13 16 Move 9187 | 90 312 112 601 375 651 995 1657 883 522 85 176 607 227 376 152 189 175 311 20 130 280 261 Hop 32 | . . . . . . . 8 13 . . . . . 1 . . 2 . . . 6 2 Pick Up 136 | 4 13 1 8 . 23 18 10 11 5 1 6 3 1 . 6 2 3 9 . 3 7 2 Fast Attach 60 | 7 2 . . . 8 23 1 4 . . 1 5 . . . . 1 1 . . 2 5 Attach 55 | . 2 1 . . 2 6 6 11 2 1 . 4 3 . 3 . 2 3 . 2 2 5 Detach 19 | . . . . . . . . 8 1 1 . 1 . 1 . . . 2 . . . 5 Swap 115 | . 7 2 1 1 10 33 6 8 . . 2 14 1 1 9 . 2 1 . 6 4 7 Drop 160 | . 7 . 6 . 30 45 13 11 6 2 9 7 1 . 1 2 3 8 . 3 5 1 Fire 233 | 5 47 8 . 10 43 77 5 16 . 1 1 . . 3 . . 2 4 . 6 1 4 Melee 114 | . . . . . . 1 47 1 8 . 2 10 4 2 . . 3 9 3 9 9 6 Ram 1 | . . . . . . . . 1 . . . . . . . . . . . . . . Kick 8 | . . . . . 2 6 . . . . . . . . . . . . . . . . Crush . | . . . . . . . . . . . . . . . . . . . . . . . Escape Stasis 22 | . . . . . . . . . . . 15 . . . . . . 7 . . . . Rewire . | . . . . . . . . . . . . . . . . . . . . . . . Trap . | . . . . . . . . . . . . . . . . . . . . . . . Miscellaneous . | . . . . . . . . . . . . . . . . . . . . . . . Route ------- -11/Scrapyard -10/Materials (discovered 2 exits: [*Mat] / [*Min]) -10/Mines -10/Exiles -9/Mines -8/Materials -8/Storage (discovered 2 exits: *Fac / Rec) -7/Factory (discovered 2 exits: *Fac / *Low) -6/Factory (discovered 2 exits: Low x2) -6/Waste -6/Factory -6/DSF -5/Factory (discovered 2 exits: *Upp x2) -5/Upper Caves -5/Upper Caves -5/Zhirov -4/Proximity Caves -4/Factory (discovered 5 exits: Upp x2 / Ext x2 / *Arm) -4/Armory -4/Lab -3/Research (discovered 2 exits: *Res / Qua) -2/Research (discovered 5 exits: *Acc x3 / Tes x2) -1/Access To Epsilon Eridani History --------- Turn | Location | Event 51 | -11/Scrapyard | Discovered new exit (range 16) 947 | -11/Scrapyard | Assembled infested the area 947 | -11/Scrapyard | Entered Materials 948 | -10/Materials | Build established: Mutant 1395 | -10/Materials | Core integrity fell below 50% 1436 | -10/Materials | Discovered new exit (range 16) 1519 | -10/Materials | Repaired Lgt. Treads 1556 | -10/Materials | Repaired Lgt. Treads 1815 | -10/Materials | Discovered new exit (range 14) 1925 | -10/Materials | Entered Mines 1956 | -10/Mines | Assembled infested the area 1961 | -10/Mines | Assisted by a Guerilla fighting off Assembled 2022 | -10/Mines | Core integrity fell below 20% 2212 | -10/Mines | Deemed a non-threat by the Exiles lab entrance 2214 | -10/Mines | Discovered new exit (range 5) 2226 | -10/Mines | Entered Exiles 2289 | -10/Exiles | Met 8R-AWN 2328 | -10/Exiles | Met EX-HEX 2469 | -10/Exiles | Met EX-DEC 2586 | -10/Exiles | Learned location of Zion (-7) 2712 | -10/Exiles | Visited The Gauntlet 3258 | -10/Exiles | Met EX-BIN 3294 | -10/Exiles | Aligned with FarCom system 3297 | -10/Exiles | Given EX-Vault access code 3393 | -10/Exiles | Opened EX-Vault 3415 | -10/Exiles | Found Flying Fortress v7 3443 | -10/Exiles | Found Field Lobotomy Kit 3451 | -10/Exiles | Found Skeleton Box 3500 | -10/Exiles | Warned to stay clear of 0b10 Research branches 3654 | -10/Exiles | Discovered new exit (range 14) 3682 | -10/Exiles | Stole three prototypes: Flying Fortress v7, Skeleton Box, Field Lobotomy Kit 3682 | -10/Exiles | Entered Mines 4078 | -9/Mines | Excavation squad dispatched 4078 | -9/Mines | A large section of the Mines collapsed 4287 | -9/Mines | Assimilated G-34 Mercenary with FLK Orb 4328 | -9/Mines | Excavation squad dispatched 4514 | -9/Mines | Assimilated G-34 Mercenary with FLK Orb 4578 | -9/Mines | Excavation squad dispatched 4585 | -9/Mines | Assimilated G-34 Mercenary with FLK Orb 4828 | -9/Mines | Excavation squad dispatched 4956 | -9/Mines | Discovered new exit (range 13) 4987 | -9/Mines | Entered Materials 4987 | -8/Materials | Accompanied by 3 allies 4987 | -8/Materials | Evolved 4 slots: Propulsion x2, Utility x2 4990 | -8/Materials | Discovered new exit (range 15) 4992 | -8/Materials | Led the pair of lost Derelicts to an unsafe place 5547 | -8/Materials | Build established: Scavenger-Mutant 6985 | -8/Materials | Entered Storage 6986 | -8/Storage | Identified exit to Recycling 7207 | -8/Storage | Remotely autohacked Sealed Heavy Doors 7213 | -8/Storage | Found Prototype Launcher 7213 | -8/Storage | Identified Gui. Missile Launcher 7683 | -8/Storage | Remotely autohacked Sealed Heavy Doors 7762 | -8/Storage | Remotely autohacked Sealed Heavy Doors 8050 | -8/Storage | Assisted by bots powering up and referring to "LRC-V3" 8137 | -8/Storage | Garrison activated, responded to threat 8212 | -8/Storage | Repaired Lgt. Armor Plating 8229 | -8/Storage | Lost 4 allies 8626 | -8/Storage | Lost 3 allies 8666 | -8/Storage | Repaired Imp. Aluminum Leg 8706 | -8/Storage | Repaired Carbon-fiber Leg 8733 | -8/Storage | Repaired Aluminum Leg 8761 | -8/Storage | Repaired Aluminum Leg 8859 | -8/Storage | Repaired Carbon-fiber Leg 8939 | -8/Storage | Discovered new exit (range 16) 9761 | -8/Storage | Entered Factory 9761 | -7/Factory | Evolved 2 slots: Utility x2 9763 | -7/Factory | FarCom data flow suspended 10041 | -7/Factory | Build established: Hacker-Mutant 10299 | -7/Factory | Crushed by falling debris 10299 | -7/Factory | System corruption reached 10% 10589 | -7/Factory | Build established: Mutant 10690 | -7/Factory | Discovered new exit (range 16) 10700 | -7/Factory | Identified exit to Lower Caves 10931 | -7/Factory | Cargo convoy interrupted 11028 | -7/Factory | Discovered new exit (range 5) 11030 | -7/Factory | Identified exit to Factory 11030 | -7/Factory | Entered another Factory area 11030 | -6/Factory | Evolved 2 slots: Propulsion x1, Utility x1 11111 | -6/Factory | Identified exit to Lower Caves 11171 | -6/Factory | Central database locked down 11237 | -6/Factory | Fabricated Impulse Thruster? 11343 | -6/Factory | Repaired Imp. Sensor Array? 11489 | -6/Factory | Manually triggered Chute Trap 11489 | -6/Factory | Sucked down chute 11489 | -6/Factory | Entered Waste 11510 | -6/Waste | Warlord forces began an assault 11519 | -6/Waste | Spotted C-40 Crusher 11526 | -6/Waste | Spotted C-40 Crusher 11535 | -6/Waste | Allies destroyed C-40 Crusher 11549 | -6/Waste | Spotted C-40 Crusher 11553 | -6/Waste | Allies destroyed C-40 Crusher 11574 | -6/Waste | Spotted C-40 Crusher 11579 | -6/Waste | Spotted C-40 Crusher 11583 | -6/Waste | Allies destroyed C-40 Crusher 11585 | -6/Waste | Allies destroyed C-40 Crusher 11596 | -6/Waste | Found Adv. Powered Armor 11607 | -6/Waste | Discovered new exit (range 10) 11771 | -6/Waste | Identified exit to Factory 11802 | -6/Waste | Entered Factory 11802 | -6/Factory | Accompanied by 15 allies 11841 | -6/Factory | Identified exit to DSF 11866 | -6/Factory | Entered DSF 11866 | -6/DSF | Accompanied by 14 allies 11890 | -6/DSF | Additional patrols routed to DSF 11919 | -6/DSF | Lost 4 allies 11931 | -6/DSF | Discovered new exit (range 16) 11945 | -6/DSF | Sterilization system engaged 11965 | -6/DSF | Ambient heat levels rising (+10) 11980 | -6/DSF | Ambient heat levels rising (+10) 11986 | -6/DSF | Identified exit to Factory 11995 | -6/DSF | Ambient heat levels rising (+10) 12005 | -6/DSF | Entered Factory 12005 | -5/Factory | Accompanied by 10 allies 12005 | -5/Factory | Evolved 2 slots: Propulsion x1, Utility x1 12029 | -5/Factory | Identified exit to Upper Caves 12082 | -5/Factory | Lost 9 allies 12224 | -5/Factory | Repaired Adv. Powered Armor 12305 | -5/Factory | First assault squad dispatched 12311 | -5/Factory | Entered Upper Caves 12317 | -5/Upper Caves | Met a Warlord Commander 12318 | -5/Upper Caves | Learned location of Warlord (-4) 12319 | -5/Upper Caves | Warlord Commander delivered Encrypted Comm Array 12321 | -5/Upper Caves | Found Encrypted Comm Array 12423 | -5/Upper Caves | Crushed by falling debris 12454 | -5/Upper Caves | Lost 3 parts (1n2u) 12481 | -5/Upper Caves | Discovered new exit (range 13) 12483 | -5/Upper Caves | Identified exit to Upper Caves 12483 | -5/Upper Caves | Entered another Upper Caves area 12517 | -5/Upper Caves | Learned Factory stockpile data 12517 | -5/Upper Caves | Learned Factory security intel 12699 | -5/Upper Caves | Discovered new exit (range 17) 12703 | -5/Upper Caves | Spotted R4-U9Y(f) 12704 | -5/Upper Caves | Encountered a Master Thief 12708 | -5/Upper Caves | Spotted RD-T04(f) 12709 | -5/Upper Caves | Encountered a Master Thief 12709 | -5/Upper Caves | Spotted CB-GMC(f) 12710 | -5/Upper Caves | Encountered a Master Thief 12710 | -5/Upper Caves | Spotted TB-L62(f) 12711 | -5/Upper Caves | Encountered a Master Thief 12712 | -5/Upper Caves | Field Lobotomy Kit stolen by Master Thief 12720 | -5/Upper Caves | Identified exit to Zhirov 12720 | -5/Upper Caves | Entered Zhirov 12720 | -5/Zhirov | Discovered new exit (range 3) 12746 | -5/Zhirov | Found Alien Artifact 12749 | -5/Zhirov | Identified Integrated Dissipator 12749 | -5/Zhirov | Installed Integrated Dissipator, increased core heat dissipation (+20) 12806 | -5/Zhirov | Found Alien Artifact 12815 | -5/Zhirov | Identified exit to Proximity Caves 12823 | -5/Zhirov | Entered Proximity Caves 12836 | -4/Proximity Caves | Learned Research non-interactive machine intel 12861 | -4/Proximity Caves | Discovered new exit (range 5) 12861 | -4/Proximity Caves | Identified exit to Factory 12862 | -4/Proximity Caves | Learned location of 2 exits from Research 12866 | -4/Proximity Caves | Entered Factory 12866 | -4/Factory | Evolved 2 slots: Propulsion x1, Utility x1 12882 | -4/Factory | Identified exit to Upper Caves 12882 | -4/Factory | Identified exit to Extension 12882 | -4/Factory | Identified exit to Armory 12931 | -4/Factory | Entered Armory 12980 | -4/Armory | Energy Cycler disabled 13047 | -4/Armory | Spotted Armor Guard 13047 | -4/Armory | Spotted Armor Guard 13055 | -4/Armory | Spotted Armor Guard 13055 | -4/Armory | Spotted Armor Guard 13064 | -4/Armory | Breached Obliterator storage 13076 | -4/Armory | Identified Transdimensional Reconstructor 13076 | -4/Armory | Warped through subspace to slip node 13076 | -4/Armory | Discovered new exit (range 1) 13076 | -4/Armory | Identified exit to Lab 13119 | -4/Armory | Entered Lab 13119 | -4/Lab | Discovered new exit (range 9) 13121 | -4/Lab | Identified exit to Research 13122 | -4/Lab | Unable to decrypt terminal 13132 | -4/Lab | Entered Research 13132 | -3/Research | Evolved 2 slots: Power x1, Propulsion x1 13133 | -3/Research | Identified exit to Quarantine 13133 | -3/Research | Identified exit to Research 13134 | -3/Research | Loaded intel: 86 non-interactive machine locations 13231 | -3/Research | Entered another Research area 13231 | -2/Research | Evolved 2 slots: Utility x2 13236 | -2/Research | Spotted B-90 Cyclops 13278 | -2/Research | Identified exit to Testing 13283 | -2/Research | Identified exit to Access 13343 | -2/Research | Entered Access 13343 | -1/Access | Evolved 2 slots: Propulsion x1, Utility x1 13352 | -1/Access | Energy Cycler disabled 13398 | -1/Access | Adv. System Shield fried by hacking feedback 13440 | -1/Access | Lost 3 parts (1n2u) 13458 | -1/Access | Discovered new exit (range 6) 13458 | -1/Access | Identified exit to Surface 13458 | *** | Escaped! Last Messages --------------- 13437_ Dropped Maul. 13437_ Acquired Lrn. Sensor Array. 13438_ Acquired Impulse Thruster. 13446_ Penetrated by Slug. 13448_ Impulse Thruster destroyed. 13449_ Penetrated by Slug. 13455_ C-30 ARC bursts open, deploying its payload. 13455_ H-88 Terminator unfolds itself. 13455_ Penetrated by Slug. 13455_ Slug penetrates Wall. 13455_ Penetrated by Slug. 13455_ Acquired 102 matter. 13455_ Lgt. Antimatter Reactor destroyed. 13457_ Connecting with Terminal... 13458_ The Access Shell folds into the floor. 13458_ EXIT=FOUND 13458_ EXIT=IDENTIFIED: SURFACE [Achievement: 10k Club] [Achievement: Epsilon Run] Map ----- +----------------------------------------------------+ | # " # ? ? ???? # ?# ? ## | | # # ????? # ##? ? ## | | #######! # ??? ???"" # ##?? ## | | ####### # ? ????"" # =##?? ??? | | ####### # ?? "" # ## ???? | | ###??## !! # ? ? ??" # ##????## | | #+######## !]A # ?????" # ## ????? | | ####### # ?? ???? ? # ##?? ?? | | " " # ??? ?? # ##?????? | | " ##?#????????## ## ????? | | ####### #####+###?#????#??### + ? ? #? | | ########### ## ? ? ?##?#?#????? ??#?? ??# | | #######?### ## ????? ? ? ??#??#?#???????#??????? | | ?????#???## ##? ? ??????? ???#?????????????????? | | ??##?#?#?## ##??? ???????? ?????????????????????? | | ?#??#????## ##? ????"????????#??????????????????? | | ##?#?#???## ##??????????????????????????????????? | | #?#??????## ##???#####??#????#??????????????????? | | #?#??????## ###################?????????????????? | | ?????????## ####### ###########?????????????????? | | ?##??#??### """T""" ""?????????????????? | | ????###??## """ """ ""???? ????????????? | | ?????????## "????B?????????????? | | ????#????## "??????????????????? | | #??#?????## "" "??????????????????? | | ?????#???## @" "??????????????????? | | ?????????## "??????????????????? | | ?#???????## "??????????????????? | | ??????#??## "??? ??????????????? | | ?????????## ""?????????????????? | | ??#??????## ####### ###########?????????????????? | | ?#???????## ###################?????????????????? | | ?????????## ?????#####???#??????????????????????? | | ?????????## ????????????????????????????????????? | | ?????????## ????#??##??#????????????????????????? | | ???#????### ????????????????????????????????????? | | ??????#??## ????#??#????????????????????????????? | | ???????#?##k ??#?????????????????????????????????? | | ?????????????????????????????????????????????????? | | ??????????????????????? ?????????????????????????? | | ?????????? ??????????????????????????????????????? | | ????????????????? ???????????????????????????????? | | ?????????????????????????????????????????????????? | | ?????????????????????????????????????????????????? | | ?????????????????????????????????????????????????? | | ?????????????????????????????????????????????????? | | ?????????????????????????????????????????????????? | | ?????????????????????????????????????????????????? | | ?????????????????????????????????????????????????? | | ?????????????????????????????????????????????????? | +----------------------------------------------------+ Best States ------------- Heat Dissipation 72 Energy Generation 41 Energy Capacity 650 Matter Stores 300 Matter Capacity 300 Sight Range 16 Robot Scan Range 18 Terrain Scan Range 20 Terrain Scan Density 410 Armor Coverage 825 Propulsion Shielding 90 Evasion (%) 73 Recoil Reduction 2 Offensive Hacking 52 Defensive Hacking 14 Item Schematics ----------------- Assault Drone Bay | -5/Zhirov | Free Exp. Heat Sink | -5/Zhirov | Free Exp. Optical Array | -5/Zhirov | Free Imp. Arc Thrower | -5/Zhirov | Free Adv. Sensor Array | -4/Armory | Hacked Robot Schematics ------------------ None Fabricated ------------ Impulse Thruster | x2 | -6/Factory | Preloaded Alien Tech Used ----------------- Integrated Dissipator Transdimensional Reconstructor Achievements -------------- 10k Club Alien Tech Armchair Analyst Backstab Brute Force Close Call Curiosity Killed The Cat Dangerous Findings Denied? Epsilon Run Explorer I Spy Just What I Needed Knowing Is Half The Battle Let's See Who's Tougher Omniscient Cartographer Part-time Excavator Prolific Hacker Respectable Loadout Shopping List Significant Disruption Slippery One Speed Demon Subspace Traveler Supersonic The More The Merrier Unlikely Earthworm Wheee! Whoosh! root@ Challenges ------------ None Game ------ Seed PropulsionCarbideBoregun Manual? 0 Play Time 06:22:05 Cumulative 15.2 hours Start 2024.11.20 @ 15:06:15 End 2024.11.22 @ 19:03:39 Sessions 5 Manual Loads 0 Difficulty Rogue Special Mode None Game No. 6 Rogue 6 Adventurer 0 Explorer 0 Win Type 0 Total 1 Types 1/0/0/0/0/0/0/0/0 Lore% 23 Gallery% 14 Achievement% 23 Wizard Run 0 Options --------- Layout 2 ASCII 0 Keyboard 0 Movement Mouse Keybinds 0 Fullscreen 1 Font 32/SmallcapsGlow Map View 50x44 Zoom Use 21% Tactical HUD 1 Map Filters NONE Filters NONE Steam 1 RUN: 8ed95df5-147b-4ecf-adc5-16336a5bb594